bitfinex-derivatives/quotes_BNBF0:USTF0_20251225
["timestamp","ask_amount","ask_price","bid_price","bid_amount"]
[1766706714221,1.018,829.36,828.94,1.20325181]
[1766706714517,1.018,829.36,828.76,9.17818331]
[1766706714518,1.018,829.36,828.91,1.20325181]
[1766706714721,1.018,829.36,828.87,1.20325181]
[1766706715116,1.018,829.36,828.84,1.20325181]
[1766706715622,1.018,829.36,828.85,1.20325181]
[1766706715819,1.018,829.36,828.86,1.20325181]
[1766706716121,1.018,829.36,828.83,1.20325181]
[1766706716321,1.018,829.36,828.85,1.20325181]
[1766706716518,1.018,829.36,828.86,1.20325181]
[1766706717222,1.018,829.36,828.83,1.20325181]
[1766706717423,1.018,829.36,828.9,1.20325181]
[1766706717721,1.018,829.36,829.03,1.20325181]
[1766706717921,1.018,829.36,829.02,1.20325181]
[1766706718123,1.018,829.36,828.97,1.20325181]
[1766706718721,1.018,829.36,828.92,1.20325181]
[1766706719222,1.018,829.36,828.89,1.20325181]
[1766706721126,1.018,829.36,828.87,1.20325181]
[1766706721323,1.018,829.36,828.14,2.97389906]
[1766706721324,1.018,829.36,828.83,1.20325181]
[1766706722127,1.018,829.36,828.82,1.20325181]
[1766706722627,1.018,829.36,828.8,1.20325181]
[1766706722826,1.018,829.36,828.63,1.20325181]
[1766706723028,1.018,829.36,828.58,1.20325181]
[1766706723429,1.018,829.36,828.57,1.20325181]
[1766706725027,1.018,829.36,828.58,1.20325181]
[1766706725527,1.018,829.36,828.62,1.20325181]
[1766706725731,1.018,829.36,828.68,1.20325181]
[1766706726032,1.018,829.36,828.67,1.20325181]
[1766706726431,1.018,829.36,828.63,1.20325181]
[1766706727228,1.018,829.36,828.64,1.20325181]
[1766706728334,1.018,829.36,828.62,1.20325181]
[1766706728532,1.018,829.36,828.61,1.20325181]
[1766706728828,1.018,829.36,828.27,1.20325181]
[1766706729335,1.018,829.36,828.28,1.20325181]
[1766706729932,1.018,829.36,828.26,1.20325181]
[1766706730529,1.018,829.36,828.27,1.20325181]
[1766706731229,1.018,829.36,828.26,1.20325181]
[1766706731433,1.018,829.36,828.27,1.20325181]
[1766706733333,1.018,829.36,828.28,1.20325181]
[1766706734240,1.018,829.36,828.27,1.20325181]
[1766706734436,1.018,829.36,828.28,1.20325181]
[1766706735135,1.018,829.36,828.27,1.20325181]
[1766706735538,1.018,829.36,828.28,1.20325181]
[1766706736239,1.018,829.36,828.27,1.20325181]
[1766706736439,1.018,829.36,828.28,1.20325181]
[1766706737540,1.018,829.36,828.31,1.20325181]
[1766706738243,0.20977946,830.05,828.39,1.20325181]
[1766706738441,0.20977946,830.05,828.28,8.98612791]
[1766706738442,0.20977946,830.05,828.42,1.20325181]
[1766706738639,1.18662234,830.04,828.42,1.20325181]
[1766706738938,1.18662234,830.03,828.42,1.20325181]
[1766706739139,1.18662234,830.02,828.42,1.20325181]
[1766706739340,1.18662234,830.01,828.43,1.20325181]
[1766706739641,1.18662234,830.0,828.43,1.20325181]
[1766706739845,1.18662234,829.99,828.43,1.20325181]
[1766706740146,0.20977946,830.05,828.46,1.20325181]
[1766706740342,1.18684635,830.04,828.47,1.20325181]
[1766706740542,0.20977946,830.05,828.57,1.20325181]
[1766706740747,0.20977946,830.05,828.61,1.20325181]
[1766706741047,1.396,830.04,828.61,1.20325181]
[1766706742448,1.396,830.04,828.62,1.20325181]
[1766706743352,1.396,830.04,828.63,1.20325181]
[1766706744147,1.396,830.04,828.64,1.20325181]
[1766706745050,1.396,830.04,828.67,1.20325181]
[1766706745248,1.396,830.04,828.69,1.20325181]
[1766706746147,1.396,830.04,828.7,1.20325181]
[1766706747151,1.396,830.04,828.72,1.20325181]
[1766706748253,1.396,830.04,828.74,1.20325181]
[1766706749252,1.396,830.04,828.76,1.20325181]
[1766706750157,1.19225343,830.03,828.78,1.20325181]
[1766706750352,1.19215409,830.02,828.78,1.20325181]
[1766706750654,1.396,830.04,828.78,1.20325181]
[1766706750852,1.19202942,830.03,828.78,1.20325181]
[1766706751051,1.396,830.04,828.78,1.20325181]
[1766706751252,1.19183837,830.03,828.79,1.20325181]
[1766706751556,1.19183837,830.02,828.79,1.20325181]
[1766706751752,1.19183837,830.01,828.79,1.20325181]
[1766706752052,1.396,830.04,828.79,1.20325181]
[1766706752253,1.19281907,830.03,828.81,1.20325181]
[1766706752455,1.19281907,830.02,828.81,1.20325181]
[1766706752651,1.19281907,830.01,828.81,1.20325181]
[1766706752853,1.19281907,830.0,828.78,1.20325181]
[1766706753053,1.19281907,829.99,828.78,1.20325181]
[1766706753255,1.396,830.04,828.8,1.20325181]
[1766706753256,1.19281907,829.98,828.8,1.20325181]
[1766706753454,1.19281907,829.97,828.8,1.20325181]
[1766706753654,1.19281907,829.96,828.8,1.20325181]
[1766706753858,1.19281907,829.95,828.8,1.20325181]
[1766706754157,1.19391044,829.94,828.8,1.20325181]
[1766706754353,1.19391044,829.93,828.82,1.20325181]
[1766706754552,1.396,830.04,828.82,1.20325181]
[1766706754754,1.1939969,830.03,828.82,1.20325181]
[1766706755054,1.1939969,830.02,828.82,1.20325181]
[1766706755254,1.1939969,830.01,828.83,1.20325181]
[1766706755454,1.1939969,830.0,828.83,1.20325181]
[1766706755654,1.1939969,829.99,828.83,1.20325181]
[1766706755859,1.1939969,829.98,828.83,1.20325181]
[1766706756057,1.1939969,829.97,828.83,1.20325181]
[1766706756354,1.1939969,829.96,828.84,1.20325181]
[1766706756556,1.1939969,829.95,828.84,1.20325181]
[1766706756758,1.1939969,829.94,828.84,1.20325181]
[1766706756959,1.1939969,829.93,828.84,1.20325181]
[1766706757259,1.1939969,829.92,828.84,1.20325181]
[1766706757458,1.396,830.04,828.84,1.20325181]
[1766706757658,1.19481927,830.03,828.84,1.20325181]
[1766706757855,1.19481927,830.02,828.84,1.20325181]
[1766706758055,1.19481927,830.01,828.85,1.20325181]
[1766706758259,1.19481927,830.0,828.85,1.20325181]
[1766706758460,1.19481927,829.99,828.85,1.20325181]
[1766706758660,1.19481927,829.98,828.85,1.20325181]
[1766706758957,1.19481927,829.97,828.85,1.20325181]
[1766706759161,1.19481927,829.96,828.85,1.20325181]
[1766706759360,1.19481927,829.95,828.86,1.20325181]
[1766706759559,1.19481927,829.94,828.86,1.20325181]
[1766706759863,1.19481927,829.93,828.86,1.20325181]
[1766706760059,0.20977946,830.05,828.86,1.20325181]
[1766706760264,1.19493909,830.04,828.86,1.20325181]
[1766706760561,1.19493909,830.03,828.86,1.20325181]
[1766706760864,1.19493909,830.02,828.86,1.20325181]
[1766706761066,1.19493909,830.01,828.84,1.20325181]
[1766706761263,1.19493909,830.0,828.84,1.20325181]
[1766706761559,1.19493909,829.99,828.84,1.20325181]
[1766706761764,1.19493909,829.98,828.84,1.20325181]
[1766706761961,1.19493909,829.97,828.84,1.20325181]
[1766706762164,1.19493909,829.96,828.85,1.20325181]
[1766706762366,1.19493909,829.95,828.85,1.20325181]
[1766706762665,1.19493909,829.94,828.85,1.20325181]
[1766706762861,1.19493909,829.93,828.85,1.20325181]
[1766706763165,1.19493909,829.93,828.7,1.79766107]
[1766706763166,1.19493909,829.93,828.87,1.20325181]
[1766706764162,1.19493909,829.93,828.88,1.20325181]
[1766706764665,1.19493909,829.93,828.87,1.20325181]
[1766706764865,1.19493909,829.93,828.76,1.20325181]
[1766706765068,0.88069395,829.91,828.66,1.20325181]
[1766706765365,1.19493909,829.9,828.66,1.20325181]
[1766706765960,0.88069395,829.78,828.52,1.20325181]
[1766706766163,1.19493909,829.77,828.52,1.20325181]
[1766706766363,1.19493909,829.76,828.51,1.20325181]
[1766706766563,1.19493909,829.76,827.48,4.16345869]
[1766706766564,1.19493909,829.75,828.49,1.20325181]
[1766706766768,1.19493909,829.74,828.49,1.20325181]
[1766706766964,1.19493909,829.73,828.49,1.20325181]
[1766706767164,1.19493909,829.72,828.49,1.20325181]
[1766706767363,1.19493909,829.71,828.49,1.20325181]
[1766706767567,1.19493909,829.7,828.49,1.20325181]
[1766706767763,1.19493909,829.69,828.49,1.20325181]
[1766706767967,1.19493909,829.68,828.49,1.20325181]
[1766706768166,1.19493909,829.67,828.49,1.20325181]
[1766706768364,1.19493909,829.66,828.48,1.20325181]
[1766706768664,1.19493909,829.65,828.48,1.20325181]
[1766706768867,1.19493909,829.64,828.48,1.20325181]
[1766706769168,1.19493909,829.63,828.48,1.20325181]
[1766706769364,1.19493909,829.62,828.47,1.20325181]
[1766706769563,1.19493909,829.61,828.47,1.20325181]
[1766706769767,1.19493909,829.6,828.47,1.20325181]
[1766706770067,1.19493909,829.59,828.47,1.20325181]
[1766706770266,1.19493909,829.58,828.47,1.20325181]
[1766706770464,1.19493909,829.57,828.47,1.20325181]
[1766706770767,0.88069395,829.78,828.47,1.20325181]
[1766706770967,1.19368922,829.77,828.47,1.20325181]
[1766706771167,1.19368922,829.76,828.47,1.20325181]
[1766706771363,1.19368922,829.75,828.46,1.20325181]
[1766706771565,1.19368922,829.74,828.46,1.20325181]
[1766706771868,1.19359945,829.73,828.48,1.20325181]
[1766706772068,1.19359945,829.72,828.6,1.20325181]
[1766706772268,1.19359945,829.71,828.6,1.20325181]
[1766706772465,0.88069395,829.92,828.6,1.20325181]
[1766706772664,1.19386778,829.91,828.61,1.20325181]
[1766706772968,1.19386778,829.9,828.65,1.20325181]
[1766706773168,1.19386778,829.89,828.65,1.20325181]
[1766706773368,1.19386778,829.88,828.65,1.20325181]
[1766706773567,1.19386778,829.87,828.69,1.20325181]
[1766706773765,1.19386778,829.86,828.69,1.20325181]
[1766706773971,1.19386778,829.85,828.69,1.20325181]
[1766706774170,1.19386778,829.84,828.69,1.20325181]
[1766706774367,1.19386778,829.83,828.69,1.20325181]
[1766706774568,1.047,829.94,828.78,1.20325181]
[1766706774772,1.19439617,829.93,828.78,1.20325181]
[1766706775071,1.19439617,829.92,828.78,1.20325181]
[1766706775368,1.19439617,829.91,828.76,1.20325181]
[1766706775572,1.19439617,829.9,828.78,1.20325181]
[1766706775770,1.19439617,829.89,828.78,1.20325181]
[1766706776073,1.19439617,829.88,828.78,1.20325181]
[1766706776273,1.19439617,829.87,828.78,1.20325181]
[1766706776474,1.047,829.94,828.78,1.20325181]
[1766706776676,1.19452613,829.93,828.78,1.20325181]
[1766706776970,1.19452613,829.92,828.78,1.20325181]
[1766706777168,1.19452613,829.91,828.78,1.20325181]
[1766706777371,1.19452613,829.9,828.78,1.20325181]
[1766706777570,1.19452613,829.89,828.79,1.20325181]
[1766706777774,1.19452613,829.88,828.79,1.20325181]
[1766706778073,1.047,829.94,828.79,1.20325181]
[1766706778272,1.19463416,829.93,828.79,1.20325181]
[1766706778474,1.19463416,829.92,828.81,1.20325181]
[1766706778672,1.19463416,829.91,828.81,1.20325181]
[1766706778875,1.19463416,829.9,828.81,1.20325181]
[1766706779072,1.19463416,829.89,828.81,1.20325181]
[1766706779277,1.047,829.94,828.81,1.20325181]
[1766706779477,1.19476581,829.93,828.81,1.20325181]
[1766706779777,1.19476581,829.92,828.81,1.20325181]
[1766706779975,1.19476581,829.91,828.81,1.20325181]
[1766706780175,1.19476581,829.9,828.81,1.20325181]
[1766706780373,1.19476581,829.89,828.81,1.20325181]
[1766706780572,1.19476581,829.88,828.81,1.20325181]
[1766706780777,1.047,829.94,828.81,1.20325181]
[1766706781073,1.19486731,829.93,828.81,1.20325181]
[1766706781272,1.19486731,829.92,828.81,1.20325181]
[1766706781478,1.19486731,829.91,828.81,1.20325181]
[1766706781777,1.19486731,829.9,828.81,1.20325181]
[1766706781976,1.19486731,829.89,828.81,1.20325181]
[1766706782177,1.19486731,829.88,828.81,1.20325181]
[1766706782372,1.047,829.94,828.82,1.20325181]
[1766706782573,1.19492569,829.93,828.8,1.20325181]
[1766706782777,1.19492569,829.92,828.8,1.20325181]
[1766706782978,1.19492569,829.91,828.77,1.20325181]
[1766706783177,1.19492569,829.9,828.77,1.20325181]
[1766706783379,1.19492569,829.89,828.76,1.20325181]
[1766706783575,1.19492569,829.88,828.74,1.20325181]
[1766706783774,1.19492569,829.87,828.74,1.20325181]
[1766706784077,1.19492569,829.86,828.74,1.20325181]
[1766706784378,1.19487082,829.85,828.74,1.20325181]
[1766706784677,1.19487082,829.84,828.74,1.20325181]
[1766706784877,1.19487082,829.83,828.74,1.20325181]
[1766706785077,1.19487082,829.82,828.74,1.20325181]
[1766706785278,1.19487082,829.81,828.75,1.20325181]
[1766706785480,1.19487082,829.8,828.74,1.20325181]
[1766706785677,1.047,829.94,828.74,1.20325181]
[1766706785873,1.1948681,829.93,828.74,1.20325181]
[1766706786077,1.1948681,829.92,828.74,1.20325181]
[1766706786279,1.1948681,829.91,828.74,1.20325181]
[1766706786579,1.1948681,829.9,828.74,1.20325181]
[1766706786777,1.1948681,829.89,828.74,1.20325181]
[1766706786975,1.1948681,829.88,828.74,1.20325181]
[1766706787275,1.1948681,829.87,828.74,1.20325181]
[1766706787577,1.1948681,829.86,828.74,1.20325181]
[1766706787774,1.1948681,829.85,828.74,1.20325181]
[1766706787975,1.1948681,829.84,828.73,1.20325181]
[1766706788175,1.1948681,829.83,828.73,1.20325181]
[1766706788378,1.1948681,829.82,828.71,1.20325181]
[1766706788578,1.1948681,829.81,828.66,1.20325181]
[1766706788779,1.1948681,829.8,828.66,1.20325181]
[1766706788979,1.1948681,829.79,828.66,1.20325181]
[1766706789175,1.1948681,829.78,828.66,1.20325181]
[1766706789479,1.1948681,829.77,828.66,1.20325181]
[1766706789679,1.1948681,829.76,828.66,1.20325181]
[1766706789876,1.1948681,829.75,828.66,1.20325181]
[1766706790076,1.1948681,829.74,828.66,1.20325181]
[1766706790279,1.1948681,829.73,828.66,1.20325181]
[1766706790580,1.1948681,829.72,828.66,1.20325181]
[1766706790780,1.1948681,829.71,828.55,1.20325181]
[1766706790982,1.1948681,829.7,828.55,1.20325181]
[1766706791281,1.1948681,829.69,828.54,1.20325181]
[1766706791480,1.1948681,829.68,828.54,1.20325181]
[1766706791675,1.1948681,829.67,828.54,1.20325181]
[1766706791877,1.1948681,829.66,828.54,1.20325181]
[1766706792078,1.1948681,829.65,828.54,1.20325181]
[1766706792277,1.1948681,829.64,828.54,1.20325181]
[1766706792580,1.1948681,829.63,828.54,1.20325181]
[1766706792776,1.1948681,829.62,828.54,1.20325181]
[1766706792982,1.1948681,829.61,828.54,1.20325181]
[1766706793181,0.88069395,829.83,828.55,1.20325181]
[1766706793484,0.966,829.6,828.64,1.20325181]
[1766706795282,0.966,829.6,828.68,1.20325181]
[1766706796280,0.966,829.6,828.69,1.20325181]
[1766706797881,0.966,829.6,828.67,1.20325181]
[1766706800586,0.966,829.6,828.68,1.20325181]
[1766706803486,0.966,829.6,828.69,1.20325181]
[1766706805287,0.966,829.6,828.7,1.20325181]
[1766706806291,0.966,829.6,828.67,1.20325181]
[1766706806990,0.966,829.6,828.68,1.20325181]
[1766706807490,0.966,829.6,828.69,1.20325181]
[1766706809496,0.966,829.6,828.7,1.20325181]
[1766706810893,1.19619263,829.59,828.63,1.20325181]
[1766706811097,1.19615325,829.58,828.61,1.20325181]
[1766706811296,0.966,829.6,828.56,1.20325181]
[1766706811297,1.19615325,829.57,828.56,1.20325181]
[1766706811494,1.19615325,829.56,828.56,1.20325181]
[1766706811693,1.19615325,829.55,828.56,1.20325181]
[1766706811897,1.19615325,829.54,828.56,1.20325181]
[1766706812098,1.19615325,829.53,828.56,1.20325181]
[1766706812298,1.19615325,829.52,828.56,1.20325181]
[1766706812495,0.966,829.6,828.56,1.20325181]
[1766706812694,1.19613781,829.59,828.56,1.20325181]
[1766706812999,1.19613781,829.58,828.56,1.20325181]
[1766706813298,1.19613781,829.57,828.56,1.20325181]
[1766706813498,1.19613781,829.56,828.56,1.20325181]
[1766706813698,1.19613781,829.55,828.56,1.20325181]
[1766706813898,1.19613781,829.54,828.56,1.20325181]
[1766706814098,1.19613781,829.53,828.56,1.20325181]
[1766706814295,1.19613781,829.52,828.56,1.20325181]
[1766706814497,1.19613781,829.51,828.57,1.20325181]
[1766706814695,0.966,829.6,828.57,1.20325181]
[1766706814899,1.19625125,829.59,828.57,1.20325181]
[1766706815094,1.19625125,829.58,828.57,1.20325181]
[1766706815296,1.19625125,829.57,828.56,1.20325181]
[1766706815500,0.966,829.6,827.82,2.97389906]
[1766706815501,1.19625125,829.56,828.57,1.20325181]
[1766706815699,1.19625125,829.55,828.57,1.20325181]
[1766706815899,1.19625125,829.54,828.57,1.20325181]
[1766706816195,0.966,829.6,828.57,1.20325181]
[1766706816196,1.19625125,829.53,828.57,1.20325181]
[1766706816496,1.19625125,829.52,828.57,1.20325181]
[1766706816701,1.19625125,829.51,828.57,1.20325181]
[1766706816902,0.966,829.6,828.57,1.20325181]
[1766706817098,1.19637012,829.59,828.57,1.20325181]
[1766706817302,1.19637012,829.58,828.57,1.20325181]
[1766706817499,1.19637012,829.57,828.57,1.20325181]
[1766706817704,1.19637012,829.56,828.57,1.20325181]
[1766706818003,1.19637012,829.55,828.57,1.20325181]
[1766706818201,1.19637012,829.54,828.56,1.20325181]
[1766706818404,1.19637012,829.54,827.82,2.97389906]
[1766706818405,1.19637012,829.53,828.45,1.20325181]
[1766706818604,1.19637012,829.52,828.38,1.20325181]
[1766706818805,0.966,829.6,827.34,4.16345869]
[1766706818806,2.07706407,829.51,828.37,1.20325181]
[1766706819005,1.19637012,829.5,828.37,1.20325181]
[1766706819299,1.19637012,829.49,828.36,1.20325181]
[1766706819502,1.19637012,829.48,828.36,1.20325181]
[1766706819704,0.88069395,829.53,828.36,1.20325181]
[1766706819705,1.19637012,829.47,828.36,1.20325181]
[1766706819906,1.19637012,829.46,828.36,1.20325181]
[1766706820106,1.19637012,829.45,828.36,1.20325181]
[1766706820307,1.19637012,829.44,828.35,1.20325181]
[1766706820608,1.19637012,829.43,828.35,1.20325181]
[1766706820806,1.19637012,829.42,828.35,1.20325181]
[1766706821006,1.19637012,829.41,828.35,1.20325181]
[1766706821202,1.19637012,829.4,828.35,1.20325181]
[1766706821507,1.19637012,829.39,828.34,1.20325181]
[1766706821705,1.19637012,829.38,828.34,1.20325181]
[1766706822007,1.19637012,829.37,828.34,1.20325181]
[1766706822207,0.88069395,829.56,828.33,1.20325181]
[1766706822407,1.19373056,829.55,828.33,1.20325181]
[1766706822609,1.19373056,829.54,828.33,1.20325181]
[1766706822809,1.19373056,829.53,828.33,1.20325181]
[1766706823108,1.19373056,829.52,828.33,1.20325181]
[1766706823305,1.19373056,829.51,828.32,1.20325181]
[1766706823504,1.19373056,829.5,828.32,1.20325181]
[1766706823708,1.19373056,829.49,828.32,1.20325181]
[1766706823904,1.19373056,829.48,828.32,1.20325181]
[1766706824208,1.19373056,829.47,828.32,1.20325181]
[1766706824405,1.19373056,829.46,828.32,1.20325181]
[1766706824708,1.19373056,829.45,828.32,1.20325181]
[1766706824909,1.19373056,829.44,828.32,1.20325181]
[1766706825208,1.19373056,829.43,828.27,1.20325181]
[1766706825409,1.19373056,829.42,828.26,1.20325181]
[1766706825607,1.19373056,829.41,828.26,1.20325181]
[1766706825804,1.19373056,829.4,828.26,1.20325181]
[1766706826010,1.19373056,829.39,828.26,1.20325181]
[1766706826309,0.88069395,829.53,827.51,2.97389906]
[1766706826310,1.19373056,829.38,828.25,1.20325181]
[1766706826508,1.19373056,829.37,828.25,1.20325181]
[1766706826704,1.19373056,829.36,828.25,1.20325181]
[1766706826908,1.19373056,829.35,828.25,1.20325181]
[1766706827109,1.19373056,829.34,828.25,1.20325181]
[1766706827306,0.88069395,829.53,828.25,1.20325181]
[1766706827509,1.19473121,829.52,828.25,1.20325181]
[1766706827709,0.966,829.6,828.25,1.20325181]
[1766706827710,1.19473121,829.51,828.25,1.20325181]
[1766706828010,1.19473121,829.5,828.25,1.20325181]
[1766706828210,1.19473121,829.49,828.25,1.20325181]
[1766706828509,1.19473121,829.48,828.25,1.20325181]
[1766706828710,1.19473121,829.47,828.25,1.20325181]
[1766706828909,1.19473121,829.46,828.25,1.20325181]
[1766706829109,1.19473121,829.45,828.25,1.20325181]
[1766706829308,1.19473121,829.44,828.25,1.20325181]
[1766706829508,1.19473121,829.43,828.25,1.20325181]
[1766706829707,1.19473121,829.42,828.25,1.20325181]
[1766706830010,1.19473121,829.41,828.25,1.20325181]
[1766706830311,1.19473121,829.4,828.24,1.20325181]
[1766706830510,1.19473121,829.39,828.24,1.20325181]
[1766706830713,1.19473121,829.38,828.24,1.20325181]
[1766706830912,1.19473121,829.37,828.24,1.20325181]
[1766706831108,1.19473121,829.36,828.24,1.20325181]
[1766706831312,0.88069395,829.55,828.24,1.20325181]
[1766706831612,1.19423077,829.54,828.24,1.20325181]
[1766706831808,1.19423077,829.53,828.24,1.20325181]
[1766706832010,1.19423077,829.52,828.24,1.20325181]
[1766706832313,1.19423077,829.51,828.24,1.20325181]
[1766706832510,1.19423077,829.5,828.24,1.20325181]
[1766706832715,1.19423077,829.49,828.24,1.20325181]
[1766706833017,1.19423077,829.48,828.24,1.20325181]
[1766706833311,1.19423077,829.47,828.24,1.20325181]
[1766706833514,1.19423077,829.46,828.24,1.20325181]
[1766706833714,1.19423077,829.45,828.24,1.20325181]
[1766706833915,1.19423077,829.44,828.24,1.20325181]
[1766706834113,1.19423077,829.43,828.24,1.20325181]
[1766706834313,1.19423077,829.42,828.24,1.20325181]
[1766706834510,1.19423077,829.41,828.23,1.20325181]
[1766706834711,1.19423077,829.4,828.23,1.20325181]
[1766706834915,1.19423077,829.39,828.23,1.20325181]
[1766706835112,1.19423077,829.38,828.23,1.20325181]
[1766706835311,1.19423077,829.37,828.23,1.20325181]
[1766706835513,0.88069395,829.56,828.23,1.20325181]
[1766706835712,1.19368256,829.55,828.23,1.20325181]
[1766706835910,1.19368256,829.54,828.23,1.20325181]
[1766706836112,1.19368256,829.53,828.23,1.20325181]
[1766706836312,1.19368256,829.52,828.23,1.20325181]
[1766706836511,1.19368256,829.51,828.23,1.20325181]
[1766706836812,1.19368256,829.5,828.23,1.20325181]
[1766706837012,1.19368256,829.49,828.23,1.20325181]
[1766706837316,1.19368256,829.48,828.23,1.20325181]
[1766706837518,1.19368256,829.47,828.23,1.20325181]
[1766706837717,1.19368256,829.46,828.23,1.20325181]
[1766706837914,1.19368256,829.45,828.23,1.20325181]
[1766706838114,1.19368256,829.44,828.23,1.20325181]
[1766706838413,1.19368256,829.43,828.22,1.20325181]
[1766706838614,1.19368256,829.42,828.22,1.20325181]
[1766706838816,1.19368256,829.41,828.22,1.20325181]
[1766706839015,1.19368256,829.4,828.22,1.20325181]
[1766706839220,1.19368256,829.39,828.22,1.20325181]
[1766706839417,1.19368256,829.38,828.22,1.20325181]
[1766706839621,0.88069395,829.57,828.22,1.20325181]
[1766706839923,1.19339669,829.56,828.29,1.20325181]
[1766706840124,1.19339669,829.55,828.29,1.20325181]
[1766706840324,1.19339669,829.54,828.3,1.20325181]
[1766706840524,1.19339669,829.53,828.3,1.20325181]
[1766706840725,1.19339669,829.52,828.3,1.20325181]
[1766706843423,1.19339669,829.52,828.31,1.20325181]
[1766706844430,1.19339669,829.52,828.37,1.20325181]
[1766706845429,1.19339669,829.52,828.38,1.20325181]
[1766706847432,1.19339669,829.52,828.39,1.20325181]
[1766706848233,1.19339669,829.52,828.4,1.20325181]
[1766706850228,1.19339669,829.52,828.41,1.20325181]
[1766706851233,1.19339669,829.52,828.42,1.20325181]
[1766706852433,1.19339669,829.52,828.43,1.20325181]
[1766706853232,1.19339669,829.52,828.44,1.20325181]
[1766706854235,1.19339669,829.52,828.45,1.20325181]
[1766706854732,1.19339669,829.52,828.46,1.20325181]
[1766706855337,1.19339669,829.52,828.47,1.20325181]
[1766706855836,1.19339669,829.52,828.51,1.20325181]
[1766706856236,1.19339669,829.52,828.56,1.20325181]
[1766706856533,1.19339669,829.52,828.57,1.20325181]
[1766706860435,0.998,829.53,828.6,1.20325181]
[1766706861041,0.998,829.53,828.61,1.20325181]
[1766706861444,0.998,829.53,828.74,1.20325181]
[1766706862037,0.998,829.53,828.73,1.20325181]
[1766706862239,0.998,829.53,828.72,1.20325181]
[1766706862641,0.998,829.53,828.73,1.20325181]
[1766706863142,0.998,829.53,828.72,1.20325181]
[1766706863742,0.998,829.53,828.75,1.20325181]
[1766706864145,0.998,829.53,828.74,1.20325181]
[1766706865343,0.998,829.53,828.72,1.20325181]
[1766706866145,0.998,829.53,828.71,1.20325181]
[1766706866644,0.998,829.53,828.72,1.20325181]
[1766706867343,0.998,829.53,828.71,1.20325181]
[1766706869142,0.998,829.53,828.7,1.20325181]
[1766706869347,0.998,829.53,828.73,1.20325181]
[1766706869542,0.998,829.53,828.76,1.20325181]
[1766706871241,0.998,829.53,828.75,1.20325181]
[1766706871541,0.998,829.53,829.1,1.20325181]
[1766706871746,0.998,829.53,829.05,1.20325181]
[1766706871943,0.998,829.53,828.98,1.20325181]
[1766706872147,0.998,829.53,828.96,1.20325181]
[1766706872844,0.998,829.53,828.95,1.20325181]
[1766706873443,0.998,829.53,828.93,1.20325181]
[1766706874149,0.998,829.53,828.91,1.20325181]
[1766706875150,0.998,829.53,828.9,1.20325181]
[1766706876151,0.998,829.53,828.89,1.20325181]
[1766706877151,0.998,829.53,828.88,1.20325181]
[1766706878152,0.998,829.53,828.87,1.20325181]
[1766706879154,0.998,829.53,828.86,1.20325181]
[1766706879651,0.998,829.53,828.85,1.20325181]
[1766706880155,0.998,829.53,828.84,1.20325181]
[1766706882156,0.998,829.53,828.83,1.20325181]
[1766706882855,0.88069395,830.38,828.83,1.20325181]
[1766706884453,0.88069395,830.37,828.83,1.20325181]
[1766706886859,1.247,830.36,828.83,1.20325181]
[1766706888961,1.247,830.36,828.87,1.20325181]
[1766706890057,1.247,830.36,828.86,1.20325181]
[1766706891062,1.247,830.36,828.87,1.20325181]
[1766706892164,1.247,830.36,828.95,1.20325181]
[1766706892359,1.247,830.36,828.95,10.35960552]
[1766706895262,1.247,830.36,828.96,1.20325181]
[1766706896265,1.247,830.36,828.97,1.20325181]
[1766706898066,1.247,830.36,828.98,1.20325181]
[1766706899167,1.247,830.36,828.99,1.20325181]
[1766706899366,1.247,830.36,829.0,1.20325181]
[1766706900166,1.247,830.36,829.01,1.20325181]
[1766706901162,1.247,830.36,829.02,1.20325181]
[1766706902168,1.247,830.36,829.03,1.20325181]
[1766706902667,1.247,830.36,829.03,10.08078565]
[1766706903270,1.247,830.36,829.04,1.20325181]
[1766706904165,1.247,830.36,829.05,1.20325181]
[1766706905169,1.247,830.36,829.07,1.20325181]
[1766706906165,2.12769395,830.36,829.08,1.20325181]
[1766706907269,0.88069395,830.35,829.09,1.20325181]
[1766706908171,0.88069395,830.35,829.1,1.20325181]
[1766706909270,0.88069395,830.34,829.11,1.20325181]
[1766706909670,0.88069395,830.34,829.12,1.20325181]
[1766706910067,0.88069395,830.33,829.13,1.20325181]
[1766706911269,0.88069395,830.32,829.14,1.20325181]
[1766706912169,0.88069395,830.32,829.15,1.20325181]
[1766706912474,1.245,830.31,829.16,1.20325181]
[1766706913170,0.88069395,830.3,829.17,1.20325181]
[1766706914272,0.88069395,830.29,829.19,1.20325181]
[1766706915175,0.88069395,830.27,829.2,1.20325181]
[1766706916177,0.88069395,830.26,829.22,1.20325181]
[1766706917778,0.88069395,830.25,829.22,1.20325181]
[1766706923180,1.245,830.31,829.34,1.20325181]